fUST/lending_fUST_20250816
["ID","MTS","AMOUNT","RATE_DAILY","PERIOD"]
[379461610,1755288641960,-460.0,0.00024931,2]
[379461611,1755288641969,-167.0,0.00024932,7]
[379461612,1755288641979,-151.0,0.00024932,2]
[379461613,1755288641988,-151.0,0.00024932,2]
[379461614,1755288641997,-151.0,0.00024932,2]
[379461615,1755288642006,-151.0,0.00024932,2]
[379461616,1755288642016,-266.38691077,0.00024932,2]
[379461617,1755288642025,-151.0,0.00024932,2]
[379461618,1755288642034,-151.0,0.00024932,2]
[379461619,1755288642044,-151.0,0.00024932,2]
[379461620,1755288642054,-151.0,0.00024932,2]
[379461621,1755288642064,-500.0,0.00024932,2]
[379461622,1755288642073,-167.0,0.00025,7]
[379461623,1755288642082,-8199.79772868,0.00025061,2]
[379461624,1755288642091,-1038.54414982,0.00025127,2]
[379461625,1755288642100,-660.0,0.00025149,2]
[379461626,1755288642110,-582.73060459,0.00025185,2]
[379461627,1755288642119,-151.0,0.00025206,2]
[379461628,1755288642128,-198.0,0.00025206,2]
[379461629,1755288642138,-198.0,0.00025206,2]
[379461630,1755288642147,-198.0,0.00025206,2]
[379461631,1755288642157,-500.0,0.00025206,2]
[379461632,1755288642167,-1676.55235133,0.00025297,2]
[379461633,1755288642176,-250.0,0.00025321,2]
[379461634,1755288642186,-1300.0,0.00025389,2]
[379461635,1755288642195,-1000.0,0.00025421,2]
[379461636,1755288642204,-250.0,0.00025421,2]
[379461637,1755288642214,-1000.0,0.00025421,2]
[379461638,1755288642224,-1038.54414982,0.00025422,2]
[379461639,1755288642233,-151.0,0.00025426,6]
[379461640,1755288642245,-972.0,0.00025445,2]
[379461641,1755288642254,-636.0,0.00025445,2]
[379461642,1755288642264,-2152.0,0.00025445,2]
[379461643,1755288642273,-153.0,0.00025474,2]
[379461644,1755288642282,-153.0,0.00025474,2]
[379461645,1755288642291,-153.0,0.00025474,2]
[379461646,1755288642301,-153.0,0.00025474,2]
[379461647,1755288642310,-153.0,0.00025474,2]
[379461648,1755288642320,-153.0,0.00025474,2]
[379461649,1755288642329,-153.0,0.00025474,2]
[379461650,1755288642339,-153.0,0.00025474,2]
[379461651,1755288642348,-153.0,0.00025474,2]
[379461652,1755288642358,-153.0,0.00025474,2]
[379461653,1755288642368,-153.0,0.00025474,2]
[379461655,1755288642378,-153.0,0.00025474,2]
[379461657,1755288642387,-153.0,0.00025474,2]
[379461659,1755288642397,-153.0,0.00025474,2]
[379461661,1755288642406,-153.0,0.00025474,2]
[379461662,1755288642416,-153.0,0.00025474,2]
[379461663,1755288642428,-153.0,0.00025474,2]
[379461665,1755288642438,-153.0,0.00025474,2]
[379461666,1755288642448,-153.0,0.00025474,2]
[379461667,1755288642457,-153.0,0.00025474,2]
[379461668,1755288642467,-153.0,0.00025474,2]
[379461669,1755288642477,-153.0,0.00025474,2]
[379461670,1755288642486,-153.0,0.00025474,2]
[379461671,1755288642497,-153.0,0.00025474,2]
[379461672,1755288642507,-153.0,0.00025474,2]
[379461673,1755288642517,-153.0,0.00025474,2]
[379461674,1755288642526,-153.0,0.00025474,2]
[379461675,1755288642535,-153.0,0.00025474,2]
[379461676,1755288642544,-153.0,0.00025474,2]
[379461677,1755288642554,-153.0,0.00025474,2]
[379461678,1755288642563,-153.0,0.00025474,2]
[379461679,1755288642572,-153.0,0.00025474,2]
[379461680,1755288642583,-153.0,0.00025474,2]
[379461681,1755288642592,-153.0,0.00025474,2]
[379461683,1755288642600,-153.0,0.00025474,2]
[379461684,1755288642608,-153.0,0.00025474,2]
[379461686,1755288642616,-153.0,0.00025474,2]
[379461688,1755288642626,-153.0,0.00025474,2]
[379461689,1755288642636,-153.0,0.00025474,2]
[379461690,1755288642646,-153.0,0.00025474,2]
[379461691,1755288642660,-153.0,0.00025474,2]
[379461692,1755288642669,-153.0,0.00025474,2]
[379461693,1755288642679,-153.0,0.00025474,2]
[379461694,1755288642688,-153.0,0.00025474,2]
[379461695,1755288642698,-153.0,0.00025474,2]
[379461696,1755288642708,-153.0,0.00025474,2]
[379461697,1755288642721,-153.0,0.00025474,2]
[379461698,1755288642731,-153.0,0.00025474,2]
[379461699,1755288642742,-153.0,0.00025474,2]
[379461700,1755288642751,-153.0,0.00025474,2]
[379461701,1755288642761,-153.0,0.00025474,2]
[379461702,1755288642770,-153.0,0.00025474,2]
[379461703,1755288642780,-153.0,0.00025474,2]
[379461704,1755288642789,-153.0,0.00025474,2]
[379461705,1755288642799,-153.0,0.00025474,2]
[379461707,1755288642811,-153.0,0.00025474,2]
[379461708,1755288642820,-153.0,0.00025474,2]
[379461709,1755288642829,-153.0,0.00025474,2]
[379461710,1755288642839,-153.0,0.00025474,2]
[379461711,1755288642848,-153.0,0.00025474,2]
[379461712,1755288642858,-153.0,0.00025474,2]
[379461713,1755288642867,-153.0,0.00025474,2]
[379461714,1755288642877,-153.0,0.00025474,2]
[379461715,1755288642887,-153.0,0.00025474,2]
[379461716,1755288642896,-153.0,0.00025474,2]
[379461717,1755288642906,-153.0,0.00025474,2]
[379461718,1755288642916,-153.0,0.00025474,2]
[379461719,1755288642926,-153.0,0.00025474,2]
[379461720,1755288642935,-153.0,0.00025474,2]
[379461721,1755288642945,-153.0,0.00025474,2]
[379461722,1755288642954,-153.0,0.00025474,2]
[379461723,1755288642964,-153.0,0.00025474,2]
[379461724,1755288642974,-153.0,0.00025474,2]
[379461725,1755288642984,-153.0,0.00025474,2]
[379461726,1755288642993,-153.0,0.00025474,2]
[379461727,1755288643003,-153.0,0.00025474,2]
[379461728,1755288643013,-153.0,0.00025474,2]
[379461729,1755288643022,-153.0,0.00025474,2]
[379461730,1755288643032,-153.0,0.00025474,2]
[379461731,1755288643042,-153.0,0.00025474,2]
[379461732,1755288643051,-153.0,0.00025474,2]
[379461733,1755288643061,-153.0,0.00025474,2]
[379461734,1755288643071,-153.0,0.00025474,2]
[379461735,1755288643081,-153.0,0.00025474,2]
[379461736,1755288643091,-153.0,0.00025474,2]
[379461737,1755288643101,-153.0,0.00025474,2]
[379461738,1755288643111,-153.0,0.00025474,2]
[379461739,1755288643121,-153.0,0.00025474,2]
[379461740,1755288643243,-153.0,0.00025474,2]
[379461742,1755288643253,-153.0,0.00025474,2]
[379461744,1755288643263,-153.0,0.00025474,2]
[379461746,1755288643273,-153.0,0.00025474,2]
[379461747,1755288643282,-153.0,0.00025474,2]
[379461748,1755288643291,-153.0,0.00025474,2]
[379461749,1755288643301,-153.0,0.00025474,2]
[379461750,1755288643311,-153.0,0.00025474,2]
[379461751,1755288643320,-153.0,0.00025474,2]
[379461752,1755288643330,-153.0,0.00025474,2]
[379461753,1755288643339,-153.0,0.00025474,2]
[379461754,1755288643349,-153.0,0.00025474,2]
[379461755,1755288643358,-153.0,0.00025474,2]
[379461756,1755288643367,-928.8,0.00025479,2]
[379461757,1755288643378,-198.0,0.0002548,2]
[379461758,1755288643388,-500.0,0.0002548,2]
[379461759,1755288643399,-158.67,0.000255,7]
[379461760,1755288643408,-13808.1,0.000255,7]
[379461761,1755288643422,-843.47195277,0.000255,7]
[379461762,1755288643432,-417.15472785,0.000255,7]
[379461763,1755288643443,-160.0,0.000255,7]
[379461764,1755288643452,-160.0,0.000255,7]
[379461765,1755288643463,-232.08354597,0.000255,7]
[379461766,1755288643472,-216.77912109,0.000255,7]
[379461767,1755288643482,-8199.79772868,0.00025577,3]
[379461768,1755288643491,-3339.7,0.000256,7]
[379461769,1755288643502,-760.0,0.00025697,2]
[379461770,1755288643511,-1038.54414982,0.00025717,2]
[379461771,1755288643521,-500.0,0.00025754,2]
[379461772,1755288643530,-350.0,0.00025868,2]
[379461773,1755288643539,-167.0,0.0002589,7]
[379461774,1755288643548,-151.0,0.00025965,6]
[379461775,1755288643557,-1428.10060781,0.00025968,2]
[379461776,1755288643566,-1000.0,0.00025968,2]
[379461777,1755288643576,-488.55518668,0.00025968,2]
[379461778,1755288643585,-1500.0,0.00025968,2]
[379461779,1755288643594,-1038.54414982,0.00026012,2]
[379461780,1755288643603,-500.0,0.00026028,2]
[379461781,1755288643612,-1152.0,0.00026092,2]
[379461782,1755288643621,-8199.79772868,0.00026094,4]
[379461783,1755288643631,-22966.19,0.000261,2]
[379461784,1755288643640,-168.86916,0.0002621,2]
[379461785,1755288643650,-860.0,0.00026245,2]
[379461786,1755288643659,-500.0,0.00026302,2]
[379461787,1755288643668,-1038.54414982,0.00026306,2]
[379461788,1755288643677,-168.86916,0.0002631,2]
[379461789,1755288643686,-582.73060459,0.00026336,2]
[379461790,1755288643695,-200.0,0.00026361,20]
[379461791,1755288643704,-200.0,0.00026361,20]
[379461792,1755288643713,-200.0,0.00026361,20]
[379461793,1755288643722,-200.0,0.00026361,20]
[379461794,1755288643732,-200.0,0.00026361,20]
[379461795,1755288643742,-200.0,0.00026361,20]
[379461796,1755288643751,-200.0,0.00026361,20]
[379461797,1755288643762,-200.0,0.00026361,20]
[379461798,1755288643771,-200.0,0.00026361,20]
[379461799,1755288643780,-200.0,0.00026361,20]
[379461800,1755288643790,-200.0,0.00026361,20]
[379461801,1755288643799,-200.0,0.00026361,20]
[379461802,1755288643808,-200.0,0.00026361,20]
[379461803,1755288643817,-200.0,0.00026361,20]
[379461804,1755288643826,-200.0,0.00026361,20]
[379461805,1755288643835,-292.0,0.00026361,20]
[379461806,1755288643845,-450.0,0.00026416,2]
[379461807,1755288643855,-1300.0,0.00026485,2]
[379461808,1755288643864,-645.0,0.000265,2]
[379461809,1755288643873,-151.0,0.00026503,7]
[379461810,1755288643883,-2000.0,0.00026516,2]
[379461811,1755288643892,-500.0,0.00026576,2]
[379461812,1755288643901,-1038.54414982,0.00026601,2]
[379461813,1755288643911,-8199.79772868,0.0002661,5]
[379461814,1755288643921,-177.952453,0.00026712,2]
[379461815,1755288643931,-456.97595022,0.00026752,2]
[379461816,1755288643943,-960.0,0.00026793,2]
[379461817,1755288643952,-500.0,0.0002685,2]
[379461818,1755288643961,-1038.54414982,0.00026896,2]
[379461819,1755288643971,-13808.1,0.000269,7]
[379461820,1755288643980,-550.0,0.00026964,2]
[379461821,1755288643989,-151.0,0.00027042,7]
[379461822,1755288643998,-1500.0,0.00027064,2]
[379461823,1755288644008,-2500.0,0.00027064,2]
[379461824,1755288644017,-3339.7,0.000271,7]
[379461825,1755288644027,-500.0,0.00027124,2]
[379461826,1755288644036,-8199.79772868,0.00027126,7]
[379461827,1755288644045,-169.0,0.00027185,7]
[379461828,1755288644055,-1038.54414982,0.00027191,2]
[379461829,1755288644064,-558.09506584,0.0002726,18]
[379461830,1755288644073,-22966.19,0.000273,2]
[379461831,1755288644083,-1060.0,0.00027341,2]
[379461832,1755288644092,-430.30698584,0.00027397,5]
[379461833,1755288644102,-500.0,0.00027397,5]
[379461834,1755288644112,-500.0,0.00027398,2]
[379461835,1755288644121,-2000.0,0.000274,2]
[379461836,1755288644131,-232.111669,0.000274,10]
[379461837,1755288644141,-156.560358,0.00027432,14]
[379461838,1755288644151,-1238.4,0.00027439,2]
[379461839,1755288644160,-200.0,0.0002747,18]
[379461840,1755288644171,-22301.80868151,0.00027477,2]
[379461841,1755288644181,-1000.0,0.00027479,2]
[379461842,1755288644190,-1038.54414982,0.00027486,2]
[379461843,1755288644200,-582.73060459,0.00027488,2]
[379461844,1755288644209,-190.878435,0.000275,2]
[379461845,1755288644218,-800.0,0.00027512,5]
[379461846,1755288644232,-500.0,0.00027536,10]
[379461847,1755288644243,-160.0,0.0002754,5]
[379461848,1755288644254,-160.0,0.00027572,10]
[379461849,1755288644263,-500.0,0.00027573,5]
[379461850,1755288644273,-150.0,0.00027573,5]
[379461851,1755288644283,-1000.0,0.00027573,2]
[379461852,1755288644293,-1000.0,0.00027573,2]
[379461853,1755288644303,-1000.0,0.00027573,2]
[379461854,1755288644313,-1000.0,0.00027573,2]
[379461855,1755288644323,-1000.0,0.00027573,2]
[379461856,1755288644332,-1000.0,0.00027573,2]
[379461857,1755288644341,-1000.0,0.00027573,2]
[379461858,1755288644353,-1000.0,0.00027573,2]
[379461859,1755288644364,-1000.0,0.00027573,2]
[379461860,1755288644374,-1000.0,0.00027573,2]
[379461861,1755288644383,-1000.0,0.00027573,2]
[379461862,1755288644393,-1000.0,0.00027573,2]
[379461863,1755288644405,-1000.0,0.00027573,2]
[379461864,1755288644415,-1000.0,0.00027573,2]
[379461865,1755288644428,-1000.0,0.00027573,2]
[379461866,1755288644438,-1000.0,0.00027573,2]
[379461867,1755288644447,-1000.0,0.00027573,2]
[379461868,1755288644458,-1000.0,0.00027573,2]
[379461869,1755288644468,-1000.0,0.00027573,2]
[379461870,1755288644477,-1000.0,0.00027573,2]
[379461871,1755288644487,-1000.0,0.00027573,2]
[379461872,1755288644497,-1000.0,0.00027573,2]
[379461873,1755288644506,-1000.0,0.00027573,2]
[379461874,1755288644516,-1000.0,0.00027573,2]
[379461875,1755288644525,-1148.068525,0.00027573,2]
[379461876,1755288644534,-151.0,0.00027573,7]
[379461877,1755288644543,-151.0,0.00027573,7]
[379461878,1755288644552,-151.0,0.00027573,7]
[379461879,1755288644562,-151.0,0.00027573,7]
[379461880,1755288644571,-388.87282,0.00027577,7]
[379461881,1755288644581,-388.87282,0.00027577,7]
[379461882,1755288644590,-388.87282,0.00027577,7]
[379461883,1755288644599,-388.87282,0.00027577,7]
[379461884,1755288644609,-388.87282,0.00027577,7]
[379461885,1755288644618,-388.87282,0.00027577,7]
[379461886,1755288644627,-388.87282,0.00027577,7]
[379461887,1755288644636,-388.87282,0.00027577,7]
[379461888,1755288644645,-388.87282,0.00027577,7]
[379461889,1755288644654,-388.87282,0.00027577,7]
[379461890,1755288644663,-388.87282,0.00027577,7]
[379461891,1755288644673,-388.87282,0.00027577,7]
[379461892,1755288644682,-388.87282,0.00027577,7]
[379461893,1755288644692,-388.87282,0.00027577,7]
[379461894,1755288644701,-388.87282,0.00027577,7]
[379461895,1755288644710,-388.87282,0.00027577,7]
[379461896,1755288644719,-388.87282,0.00027577,7]
[379461897,1755288644728,-388.87282,0.00027577,7]
[379461898,1755288644737,-388.87282,0.00027577,7]
[379461899,1755288644747,-388.87282,0.00027577,7]
[379461900,1755288644756,-151.0,0.00027577,7]
[379461901,1755288644765,-151.0,0.00027577,7]
[379461902,1755288644774,-151.0,0.00027577,7]
[379461903,1755288644784,-151.0,0.00027577,7]
[379461904,1755288644793,-151.0,0.00027577,7]
[379461905,1755288644803,-151.0,0.00027577,7]
[379461906,1755288644812,-151.0,0.00027577,7]
[379461907,1755288644821,-151.0,0.00027577,7]
[379461908,1755288644830,-151.0,0.00027577,7]
[379461909,1755288644839,-151.0,0.00027577,7]
[379461910,1755288644849,-151.0,0.00027577,7]
[379461911,1755288644858,-151.0,0.00027577,7]
[379461912,1755288644867,-151.0,0.00027577,7]
[379461913,1755288644877,-151.0,0.00027577,7]
[379461914,1755288644886,-151.0,0.00027577,7]
[379461915,1755288644895,-151.0,0.00027577,7]
[379461916,1755288644904,-226.10065,0.00027577,7]
[379461917,1755288644913,-151.0,0.00027577,7]
[379461918,1755288644922,-151.0,0.00027577,7]
[379461919,1755288644931,-151.0,0.00027577,7]
[379461920,1755288644940,-290.094404,0.00027577,7]
[379461921,1755288644950,-151.0,0.00027577,7]
[379461922,1755288644959,-151.0,0.00027577,7]
[379461923,1755288644967,-151.0,0.00027577,7]
[379461924,1755288644976,-151.0,0.00027577,7]
[379461925,1755288644985,-151.0,0.00027577,7]
[379461926,1755288644994,-191.204824,0.00027577,7]
[379461927,1755288645003,-151.0,0.00027577,7]
[379461928,1755288645012,-151.0,0.00027577,7]
[379461929,1755288645021,-151.0,0.00027577,7]
[379461930,1755288645030,-151.0,0.00027577,7]
[379461931,1755288645039,-151.0,0.00027577,7]
[379461932,1755288645048,-151.0,0.00027577,7]
[379461933,1755288645057,-151.0,0.00027577,7]
[379461934,1755288645066,-151.0,0.00027577,7]
[379461935,1755288645075,-151.0,0.00027577,7]
[379461936,1755288645084,-151.0,0.00027577,7]
[379461937,1755288645093,-151.0,0.00027577,7]
[379461938,1755288645102,-151.0,0.00027577,7]
[379461939,1755288645111,-151.0,0.00027577,7]
[379461940,1755288645120,-151.0,0.00027577,7]
[379461941,1755288645130,-243.5,0.00027577,7]
[379461942,1755288645139,-151.0,0.00027577,7]
[379461943,1755288645148,-152.159054,0.00027577,7]
[379461944,1755288645157,-151.0,0.00027577,7]
[379461945,1755288645166,-151.0,0.00027577,7]
[379461946,1755288645174,-151.0,0.00027577,7]
[379461947,1755288645183,-151.0,0.00027577,7]
[379461948,1755288645192,-151.0,0.00027577,7]
[379461949,1755288645201,-151.0,0.00027577,7]
[379461950,1755288645209,-168.336471,0.00027577,7]
[379461951,1755288645218,-500.0,0.00027578,10]
[379461952,1755288645227,-500.0,0.00027578,10]
[379461953,1755288645236,-200.51664821,0.00027578,10]
[379461954,1755288645245,-154.5425,0.00027579,7]
[379461955,1755288645253,-151.0,0.00027579,7]
[379461956,1755288645262,-151.0,0.00027579,7]
[379461957,1755288645271,-151.0,0.00027579,7]
[379461958,1755288645280,-151.0,0.00027579,7]
[379461959,1755288645289,-151.0,0.00027579,7]
[379461960,1755288645298,-151.0,0.00027579,7]
[379461961,1755288645307,-151.0,0.00027579,7]
[379461962,1755288645316,-151.0,0.00027579,7]
[379461963,1755288645325,-151.0,0.00027579,7]
[379461964,1755288645334,-151.0,0.00027579,7]
[379461965,1755288645344,-151.0,0.00027579,7]
[379461966,1755288645353,-151.0,0.00027579,7]
[379461967,1755288645362,-151.0,0.00027579,7]
[379461968,1755288645371,-151.0,0.00027579,7]
[379461969,1755288645381,-151.0,0.00027579,7]
[379461970,1755288645390,-151.0,0.00027579,7]
[379461971,1755288645400,-151.0,0.00027579,7]
[379461972,1755288645506,-277.458135,0.00027579,7]
[379461974,1755288645516,-151.0,0.00027579,7]
[379461975,1755288645526,-151.0,0.00027579,7]
[379461976,1755288645535,-151.0,0.00027579,7]
[379461977,1755288645544,-151.0,0.00027579,7]
[379461978,1755288645554,-152.301724,0.00027579,7]
[379461979,1755288645563,-151.0,0.00027579,7]
[379461980,1755288645572,-151.0,0.00027579,7]
[379461981,1755288645582,-151.0,0.00027579,7]
[379461982,1755288645591,-151.0,0.00027579,7]
[379461983,1755288645600,-151.0,0.00027579,7]
[379461984,1755288645609,-151.0,0.00027579,7]
[379461985,1755288645619,-151.0,0.00027579,7]
[379461986,1755288645628,-151.0,0.00027579,7]
[379461987,1755288645638,-151.0,0.00027579,7]
[379461988,1755288645648,-151.0,0.00027579,7]
[379461989,1755288645658,-151.0,0.00027579,7]
[379461990,1755288645668,-151.0,0.00027579,7]
[379461991,1755288645678,-151.0,0.00027579,7]
[379461992,1755288645687,-151.0,0.00027579,7]
[379461993,1755288645697,-151.0,0.00027579,7]
[379461994,1755288645706,-151.0,0.00027579,7]
[379461995,1755288645716,-167.03493068,0.00027579,7]
[379461996,1755288645725,-208.0,0.0002758,30]
[379461997,1755288645734,-208.0,0.0002758,30]
[379461998,1755288645743,-208.0,0.0002758,30]
[379461999,1755288645753,-151.0,0.0002758,7]
[379462000,1755288645762,-151.0,0.00027581,7]
[379462001,1755288645772,-151.0,0.00027581,7]
[379462002,1755288645782,-151.0,0.00027581,7]
[379462003,1755288645791,-151.0,0.00027581,7]
[379462004,1755288645801,-151.0,0.00027581,7]
[379462005,1755288645810,-151.0,0.00027581,7]
[379462006,1755288645820,-151.0,0.00027581,7]
[379462007,1755288645830,-198.56527127,0.00027581,7]
[379462008,1755288645839,-172.082067,0.00027581,20]
[379462009,1755288645849,-172.082066,0.00027581,20]
[379462010,1755288645858,-156.560358,0.00027581,20]
[379462011,1755288645867,-1300.0,0.00027581,7]
[379462012,1755288645876,-151.0,0.00027583,7]
[379462013,1755288645885,-151.0,0.00027583,7]
[379462014,1755288645895,-151.0,0.00027583,7]
[379462015,1755288645906,-151.0,0.00027583,7]
[379462016,1755288645916,-151.0,0.00027583,7]
[379462017,1755288645925,-151.0,0.00027583,7]
[379462018,1755288645935,-151.0,0.00027583,7]
[379462019,1755288645944,-151.0,0.00027583,7]
[379462020,1755288645954,-151.0,0.00027583,7]
[379462021,1755288645963,-151.0,0.00027583,7]
[379462022,1755288645972,-151.0,0.00027583,7]
[379462023,1755288645981,-151.0,0.00027583,7]
[379462024,1755288645993,-151.0,0.00027583,7]
[379462025,1755288646002,-151.0,0.00027583,7]
[379462026,1755288646012,-151.0,0.00027583,7]
[379462027,1755288646021,-236.581039,0.00027583,7]
[379462029,1755288646030,-151.461735,0.00027583,7]
[379462030,1755288646039,-151.0,0.00027586,7]
[379462031,1755288646048,-151.0,0.00027586,7]
[379462032,1755288646057,-151.841311,0.00027586,7]
[379462033,1755288646067,-151.0,0.00027586,7]
[379462034,1755288646077,-151.0,0.00027586,7]
[379462035,1755288646086,-151.0,0.00027586,7]
[379462036,1755288646095,-151.0,0.00027586,7]
[379462037,1755288646104,-151.0,0.00027586,7]
[379462038,1755288646114,-151.0,0.00027586,7]
[379462039,1755288646122,-151.0,0.00027586,7]
[379462040,1755288646131,-151.0,0.00027586,7]
[379462041,1755288646140,-151.0,0.00027586,7]
[379462042,1755288646150,-151.0,0.00027586,7]
[379462043,1755288646159,-151.0,0.00027586,7]
[379462044,1755288646168,-151.0,0.00027586,7]
[379462045,1755288646177,-151.0,0.00027586,7]
[379462046,1755288646186,-151.0,0.00027586,7]
[379462048,1755288646195,-151.0,0.00027586,7]
[379462050,1755288646205,-151.0,0.00027586,7]
[379462052,1755288646214,-151.0,0.00027586,7]
[379462054,1755288646223,-151.0,0.00027586,7]
[379462055,1755288646232,-151.0,0.00027586,7]
[379462056,1755288646241,-221.175588,0.00027586,7]
[379462057,1755288646252,-300.67924464,0.00027587,10]
[379462058,1755288646262,-419.530307,0.00027588,7]
[379462059,1755288646271,-419.530307,0.00027588,7]
[379462060,1755288646280,-419.530307,0.00027588,7]
[379462061,1755288646290,-419.530307,0.00027588,7]
[379462062,1755288646299,-419.530307,0.00027588,7]
[379462063,1755288646308,-419.530307,0.00027588,7]
[379462064,1755288646317,-419.530307,0.00027588,7]
[379462066,1755288646327,-419.530307,0.00027588,7]
[379462068,1755288646335,-419.530307,0.00027588,7]
[379462069,1755288646345,-419.530307,0.00027588,7]
[379462070,1755288646353,-419.530307,0.00027588,7]
[379462071,1755288646362,-419.530307,0.00027588,7]
[379462072,1755288646371,-419.530307,0.00027588,7]
[379462073,1755288646380,-419.530307,0.00027588,7]
[379462074,1755288646389,-419.530307,0.00027588,7]
[379462075,1755288646399,-419.530307,0.00027588,7]
[379462076,1755288646408,-419.530307,0.00027588,7]
[379462077,1755288646420,-419.530307,0.00027588,7]
[379462078,1755288646429,-419.530307,0.00027588,7]
[379462079,1755288646438,-419.530303,0.00027588,7]
[379462080,1755288646447,-2263.54613032,0.00027588,2]
[379462081,1755288646457,-281821.111777,0.00027588,20]
[379462082,1755288646467,-1497573.17199203,0.00027588,20]
[379462083,1755288646650,-78037.4017076,0.00027588,20]
[379462084,1755288646662,-3738.94512441,0.00027588,20]
[379462085,1755288646673,-3572.71252895,0.00027588,20]
[379462086,1755288646682,-5111.06178691,0.00027588,15]
[379462087,1755288646693,-291.09990644,0.00027588,15]
[379462088,1755288646702,-161.24631426,0.00027588,20]
[379462089,1755288646713,-1468.65725601,0.00027588,20]
[379462090,1755288646724,-711.80323751,0.00027588,20]
[379462091,1755288646735,-2021.39089324,0.00027588,20]
[379462092,1755288646746,-14357.06384279,0.00027588,20]
[379462093,1755288646758,-4888.7129067,0.00027588,20]
[379462094,1755288646799,-52088.19172395,0.00027588,20]
[379462095,1755288646810,-5605.38598848,0.00027588,20]
[379462096,1755288647273,-340.6610627,0.00020868,2]
[379462097,1755288647454,-76.49366515,0.00020868,2]
[379462098,1755288647465,-10027.27453117,0.00027588,20]
[379462099,1755288647476,-4389.60508926,0.00027588,20]
[379462100,1755288647488,-94233.2169192,0.00027588,20]
[379462101,1755288647498,-115081.68829608,0.00027588,2]
[379462102,1755288647507,-28615.31550489,0.00027588,20]
[379462103,1755288647726,-440.88460635,0.00025474,2]
[379462104,1755288647737,-1329.62684757,0.00025474,2]
[379462105,1755288647749,-429.48854608,0.00025474,2]
[379462106,1755288647758,-13809.3709071,0.00027588,20]
[379462186,1755289094918,462.0,0.00028,120]
[379462262,1755289465950,159.659421,0.00013699,2]
[379462321,1755289631121,-231.18954266,0.00017872,2]
[379462326,1755289663139,177.296554,0.00027397,120]
[379462377,1755289832036,-618.691694,0.00017443,2]
[379462378,1755289832046,-19.13783854,0.00017872,2]
[379462379,1755289832055,-203.60173953,0.00018049,2]
[379462380,1755289832064,-1200.0,0.00018149,2]
[379462381,1755289832073,-258.0,0.00018149,2]
[379462382,1755289832083,-1200.0,0.00018149,2]
[379462383,1755289832092,-288.53601594,0.0001815,2]
[379462384,1755289832103,-1819.9,0.0001815,2]
[379462385,1755289832113,-2684.16575764,0.0001815,2]
[379462402,1755289838130,-505.75395028,0.0001815,2]
[379462403,1755289838186,-4701.64427614,0.0001815,2]
[379462404,1755289838196,-209.620175,0.00018218,2]
[379462405,1755289838205,-203.60173952,0.00018411,2]
[379462406,1755289838215,-160.0,0.00018418,2]
[379462407,1755289838225,-3826.4186601,0.00018425,2]
[379462408,1755289838235,-16518.62486428,0.000185,2]
[379462409,1755289838244,-427.8446499,0.0001851,2]
[379462410,1755289838254,-250.0,0.0001851,2]
[379462411,1755289838263,-500.0,0.0001851,2]